[Event "Early-Titled-Tuesday-Blitz-April-23-2024"]
[Site "Chess.com"]
[Date "2024.04.23"]
[Round "7"]
[White "grantelgibbs"]
[Black "Alenzer"]
[Result "0-1"]
[WhiteElo "1870"]
[BlackElo "2221"]
[TimeControl "180+1"]
[EndTime "9:18:16 PDT"]
[Termination "Alenzer won by resignation"]

1. e3 {[%clk 0:02:40]} 1... d5 {[%clk 0:02:56.3]} 2. b3 {[%clk 0:02:39.8]} 2...
c5 {[%clk 0:02:56.1]} 3. Bb2 {[%clk 0:02:40]} 3... Nc6 {[%clk 0:02:56.7]} 4. Nf3
{[%clk 0:02:40.2]} 4... Nf6 {[%clk 0:02:56.1]} 5. Be2 {[%clk 0:02:37.9]} 5... e6
{[%clk 0:02:56.2]} 6. c3 {[%clk 0:02:37.3]} 6... Bd6 {[%clk 0:02:56.6]} 7. d4
{[%clk 0:02:37.6]} 7... O-O {[%clk 0:02:54.4]} 8. Nbd2 {[%clk 0:02:37.5]} 8...
e5 {[%clk 0:02:54.6]} 9. dxc5 {[%clk 0:02:28.6]} 9... Bxc5 {[%clk 0:02:53.8]}
10. c4 {[%clk 0:02:28.6]} 10... Re8 {[%clk 0:02:50.3]} 11. cxd5 {[%clk
0:02:26.2]} 11... Nxd5 {[%clk 0:02:48.9]} 12. O-O {[%clk 0:02:19.9]} 12... Bxe3
{[%clk 0:02:42.4]} 13. Qc1 {[%clk 0:01:47.1]} 13... Bd4 {[%clk 0:02:34.1]} 14.
Nc4 {[%clk 0:01:46.4]} 14... Bxb2 {[%clk 0:02:32]} 15. Qxb2 {[%clk 0:01:45.7]}
15... e4 {[%clk 0:02:17.5]} 16. Nd4 {[%clk 0:01:43.7]} 16... Nf4 {[%clk
0:02:13.7]} 17. Nxc6 {[%clk 0:01:42.2]} 17... bxc6 {[%clk 0:02:11]} 18. Rfd1
{[%clk 0:01:40.7]} 18... Qg5 {[%clk 0:02:07.8]} 19. Bf1 {[%clk 0:01:39.2]} 19...
Bh3 {[%clk 0:01:49.5]} 20. Ne3 {[%clk 0:01:37.4]} 20... Re6 {[%clk 0:01:27.7]}
21. Qd4 {[%clk 0:01:26.1]} 21... Bxg2 {[%clk 0:00:38.5]} 22. Nxg2 {[%clk
0:01:24.2]} 22... Rg6 {[%clk 0:00:28.9]} 23. Qxe4 {[%clk 0:01:22.4]} 23... Nh3+
{[%clk 0:00:28.4]} 24. Kh1 {[%clk 0:01:21.8]} 24... Nxf2+ {[%clk 0:00:28.4]} 25.
Kg1 {[%clk 0:01:16.5]} 25... Nxe4 {[%clk 0:00:28.4]} 0-1

[Event "Early-Titled-Tuesday-Blitz-April-23-2024"]
[Site "Chess.com"]
[Date "2024.04.23"]
[Round "7"]
[White "ScofieldMichael01"]
[Black "RamonManon0g"]
[Result "0-1"]
[WhiteElo "2589"]
[BlackElo "2467"]
[TimeControl "180+1"]
[EndTime "9:18:19 PDT"]
[Termination "RamonManon0g won by checkmate"]

1. e4 {[%clk 0:03:00.9]} 1... c5 {[%clk 0:02:50]} 2. Nf3 {[%clk 0:02:52.5]} 2...
d6 {[%clk 0:02:27.5]} 3. d4 {[%clk 0:02:53.4]} 3... cxd4 {[%clk 0:02:28]} 4.
Qxd4 {[%clk 0:02:51.7]} 4... Nc6 {[%clk 0:02:26.2]} 5. Qd1 {[%clk 0:02:50.1]}
5... Nf6 {[%clk 0:02:25.1]} 6. Bd3 {[%clk 0:02:45.4]} 6... Bg4 {[%clk
0:02:21.3]} 7. O-O {[%clk 0:02:44.6]} 7... e5 {[%clk 0:02:15.7]} 8. Nbd2 {[%clk
0:02:33.4]} 8... Be7 {[%clk 0:02:06.6]} 9. h3 {[%clk 0:02:31.9]} 9... Bh5 {[%clk
0:02:05.9]} 10. c3 {[%clk 0:02:30.7]} 10... d5 {[%clk 0:02:02.9]} 11. exd5
{[%clk 0:02:30.5]} 11... Qxd5 {[%clk 0:02:03.8]} 12. Qc2 {[%clk 0:02:27.6]}
12... Rc8 {[%clk 0:01:57.6]} 13. Bc4 {[%clk 0:02:22.3]} 13... Qd7 {[%clk
0:01:54.2]} 14. Re1 {[%clk 0:02:11.3]} 14... O-O {[%clk 0:01:46.9]} 15. Nxe5
{[%clk 0:01:53.6]} 15... Nxe5 {[%clk 0:01:39.2]} 16. Rxe5 {[%clk 0:01:54.5]}
16... Bd6 {[%clk 0:01:36.2]} 17. Re1 {[%clk 0:01:51.5]} 17... Rfe8 {[%clk
0:01:34.1]} 18. Rxe8+ {[%clk 0:01:48.5]} 18... Qxe8 {[%clk 0:01:35]} 19. Bf1
{[%clk 0:01:40.1]} 19... Qe5 {[%clk 0:01:30]} 20. g3 {[%clk 0:01:39.8]} 20...
Bc5 {[%clk 0:01:18.2]} 21. Nc4 {[%clk 0:01:36.8]} 21... Qxg3+ {[%clk 0:01:16.2]}
22. Bg2 {[%clk 0:01:20.9]} 22... Bf3 {[%clk 0:01:05.4]} 23. Ne3 {[%clk
0:01:21.1]} 23... Bxe3 {[%clk 0:01:05]} 24. fxe3 {[%clk 0:01:20.8]} 24... Ne4
{[%clk 0:00:50.6]} 25. Kf1 {[%clk 0:00:57.1]} 25... Rd8 {[%clk 0:00:49.3]} 26.
b3 {[%clk 0:00:41.7]} 26... Rd1+ {[%clk 0:00:46.6]} 27. Qxd1 {[%clk 0:00:41.6]}
27... Qf2# {[%clk 0:00:46.2]} 0-1

[Event "Early-Titled-Tuesday-Blitz-April-23-2024"]
[Site "Chess.com"]
[Date "2024.04.23"]
[Round "7"]
[White "AlexanderKing"]
[Black "Daaksboy"]
[Result "1-0"]
[WhiteElo "2582"]
[BlackElo "2426"]
[TimeControl "180+1"]
[EndTime "9:18:21 PDT"]
[Termination "AlexanderKing won by resignation"]

1. g3 {[%clk 0:03:00.9]} 1... Nf6 {[%clk 0:02:59]} 2. Bg2 {[%clk 0:03:01.2]}
2... g6 {[%clk 0:02:59.8]} 3. c4 {[%clk 0:03:01.7]} 3... Bg7 {[%clk 0:03:00.5]}
4. Nc3 {[%clk 0:03:02.6]} 4... O-O {[%clk 0:03:01.2]} 5. e4 {[%clk 0:03:03.3]}
5... d6 {[%clk 0:03:01.6]} 6. Nge2 {[%clk 0:03:04]} 6... c5 {[%clk 0:03:02.2]}
7. O-O {[%clk 0:03:04.6]} 7... Nc6 {[%clk 0:03:02.8]} 8. d3 {[%clk 0:03:05.2]}
8... Rb8 {[%clk 0:03:01.7]} 9. f4 {[%clk 0:03:04.7]} 9... Bg4 {[%clk 0:02:58.6]}
10. h3 {[%clk 0:03:04.6]} 10... Bxe2 {[%clk 0:02:58.1]} 11. Nxe2 {[%clk
0:03:02.8]} 11... b5 {[%clk 0:02:57.9]} 12. e5 {[%clk 0:03:01.9]} 12... dxe5
{[%clk 0:02:40.7]} 13. Bxc6 {[%clk 0:03:01.8]} 13... Qd6 {[%clk 0:02:27]} 14.
Bf3 {[%clk 0:02:40.2]} 14... exf4 {[%clk 0:02:24.5]} 15. Bxf4 {[%clk 0:02:36.2]}
15... e5 {[%clk 0:02:23.9]} 16. Be3 {[%clk 0:02:31.5]} 16... Rfd8 {[%clk
0:02:17.7]} 17. Nc3 {[%clk 0:02:18.4]} 17... Qxd3 {[%clk 0:02:07]} 18. Qxd3
{[%clk 0:02:19.3]} 18... Rxd3 {[%clk 0:02:06.5]} 19. Bxc5 {[%clk 0:02:17]} 19...
bxc4 {[%clk 0:02:06.6]} 20. Rf2 {[%clk 0:01:26.7]} 20... e4 {[%clk 0:01:38.7]}
21. Be2 {[%clk 0:01:18.9]} 21... Rxg3+ {[%clk 0:01:21.7]} 22. Kh2 {[%clk
0:01:18.9]} 22... Rg5 {[%clk 0:01:12.9]} 23. Be3 {[%clk 0:01:15.1]} 23... Ra5
{[%clk 0:01:05.4]} 24. Bxc4 {[%clk 0:01:05.1]} 24... Rc8 {[%clk 0:01:02.9]} 25.
Bb3 {[%clk 0:00:59.2]} 25... Rh5 {[%clk 0:00:56.7]} 26. Kg2 {[%clk 0:00:53.7]}
26... Rc7 {[%clk 0:00:50.6]} 27. Raf1 {[%clk 0:00:51.6]} 1-0

[Event "Early-Titled-Tuesday-Blitz-April-23-2024"]
[Site "Chess.com"]
[Date "2024.04.23"]
[Round "7"]
[White "Ati1517"]
[Black "Levanzovsky"]
[Result "1-0"]
[WhiteElo "2278"]
[BlackElo "2504"]
[TimeControl "180+1"]
[EndTime "9:18:22 PDT"]
[Termination "Ati1517 won by checkmate"]

1. e4 {[%clk 0:03:00.9]} 1... e5 {[%clk 0:02:58.6]} 2. Nf3 {[%clk 0:03:00.6]}
2... Nc6 {[%clk 0:02:58]} 3. d4 {[%clk 0:03:01]} 3... exd4 {[%clk 0:02:57.8]} 4.
Bc4 {[%clk 0:03:01.6]} 4... Nf6 {[%clk 0:02:57.6]} 5. O-O {[%clk 0:03:02.2]}
5... Nxe4 {[%clk 0:02:57.3]} 6. Re1 {[%clk 0:03:02.6]} 6... d5 {[%clk 0:02:58]}
7. Bxd5 {[%clk 0:03:03.2]} 7... Qxd5 {[%clk 0:02:58.6]} 8. Nc3 {[%clk
0:03:03.8]} 8... Qa5 {[%clk 0:02:59.4]} 9. Nxe4 {[%clk 0:03:04.4]} 9... Be6
{[%clk 0:02:59]} 10. Bd2 {[%clk 0:03:01.9]} 10... Qh5 {[%clk 0:02:50.7]} 11. Bg5
{[%clk 0:03:00.6]} 11... h6 {[%clk 0:02:44.5]} 12. Bf6 {[%clk 0:02:57]} 12...
Qa5 {[%clk 0:02:45.2]} 13. Nxd4 {[%clk 0:02:25.9]} 13... Nxd4 {[%clk 0:02:03.4]}
14. Qxd4 {[%clk 0:02:23.1]} 14... Rg8 {[%clk 0:02:01.9]} 15. Rad1 {[%clk
0:02:07]} 15... Be7 {[%clk 0:01:54.6]} 16. Bxg7 {[%clk 0:01:42.4]} 16... Rd8
{[%clk 0:01:49.6]} 17. Nf6+ {[%clk 0:01:42.2]} 17... Bxf6 {[%clk 0:01:49.6]} 18.
Qxf6 {[%clk 0:01:41.3]} 18... Rxd1 {[%clk 0:01:27.2]} 19. Rxd1 {[%clk
0:01:38.8]} 19... c6 {[%clk 0:01:25.8]} 20. Qxh6 {[%clk 0:01:12.4]} 20... Qxa2
{[%clk 0:01:17.1]} 21. Qh7 {[%clk 0:00:38.2]} 21... f5 {[%clk 0:00:50.6]} 22.
Bf6 {[%clk 0:00:31.6]} 22... Bf7 {[%clk 0:00:50.9]} 23. Rd8# {[%clk 0:00:29.7]}
1-0

[Event "Early-Titled-Tuesday-Blitz-April-23-2024"]
[Site "Chess.com"]
[Date "2024.04.23"]
[Round "7"]
[White "Fjal"]
[Black "whiteglovethief"]
[Result "0-1"]
[WhiteElo "2335"]
[BlackElo "2569"]
[TimeControl "180+1"]
[EndTime "9:18:24 PDT"]
[Termination "whiteglovethief won on time"]

1. Nf3 {[%clk 0:02:50]} 1... g6 {[%clk 0:02:54.8]} 2. g3 {[%clk 0:02:50.9]} 2...
Bg7 {[%clk 0:02:55.2]} 3. Bg2 {[%clk 0:02:51.4]} 3... e5 {[%clk 0:02:55.8]} 4.
O-O {[%clk 0:02:52.3]} 4... Nc6 {[%clk 0:02:54.8]} 5. d3 {[%clk 0:02:52.6]} 5...
d5 {[%clk 0:02:53.8]} 6. c4 {[%clk 0:02:52.9]} 6... dxc4 {[%clk 0:02:53.3]} 7.
dxc4 {[%clk 0:02:53.8]} 7... Qxd1 {[%clk 0:02:50.4]} 8. Rxd1 {[%clk 0:02:54.7]}
8... e4 {[%clk 0:02:44.9]} 9. Ng5 {[%clk 0:02:53.8]} 9... Nd4 {[%clk 0:02:41.5]}
10. Bxe4 {[%clk 0:02:48.9]} 10... Nxe2+ {[%clk 0:02:31.2]} 11. Kg2 {[%clk
0:02:44.7]} 11... Nxc1 {[%clk 0:02:32]} 12. Nc3 {[%clk 0:02:35.7]} 12... Nf6
{[%clk 0:02:28.3]} 13. Raxc1 {[%clk 0:02:25.9]} 13... h6 {[%clk 0:02:24.8]} 14.
Nf3 {[%clk 0:01:53.2]} 14... Nxe4 {[%clk 0:02:23.7]} 15. Nxe4 {[%clk 0:01:42.5]}
15... Bxb2 {[%clk 0:02:23.2]} 16. Rc2 {[%clk 0:01:05.9]} 16... Bg7 {[%clk
0:02:20.5]} 17. Nc5 {[%clk 0:01:05.6]} 17... O-O {[%clk 0:02:16.3]} 18. Re2
{[%clk 0:01:01.2]} 18... b6 {[%clk 0:02:14.6]} 19. Nd7 {[%clk 0:00:58.1]} 19...
Rd8 {[%clk 0:02:04.4]} 20. Re7 {[%clk 0:00:57.5]} 20... Bf8 {[%clk 0:01:47.8]}
21. Nf6+ {[%clk 0:00:08.9]} 21... Kg7 {[%clk 0:01:45.5]} 22. Ne8+ {[%clk
0:00:05.5]} 22... Kh8 {[%clk 0:01:29.9]} 23. Rxf7 {[%clk 0:00:01.6]} 23... Rxe8
{[%clk 0:01:25.5]} 24. Ne5 {[%clk 0:00:02.1]} 24... Bb7+ {[%clk 0:01:24.1]} 25.
Kh3 {[%clk 0:00:01.8]} 25... Rxe5 {[%clk 0:01:23.2]} 0-1

[Event "Early-Titled-Tuesday-Blitz-April-23-2024"]
[Site "Chess.com"]
[Date "2024.04.23"]
[Round "7"]
[White "Sasha_Solovev_777"]
[Black "amanjazu"]
[Result "0-1"]
[WhiteElo "2240"]
[BlackElo "2542"]
[TimeControl "180+1"]
[EndTime "9:18:29 PDT"]
[Termination "amanjazu won by resignation"]

1. e4 {[%clk 0:03:00.9]} 1... c5 {[%clk 0:02:58.2]} 2. Nf3 {[%clk 0:03:00.7]}
2... d6 {[%clk 0:02:58]} 3. d4 {[%clk 0:03:00.8]} 3... cxd4 {[%clk 0:02:58.9]}
4. Nxd4 {[%clk 0:03:01]} 4... Nf6 {[%clk 0:02:59.3]} 5. Nc3 {[%clk 0:03:01.2]}
5... a6 {[%clk 0:02:59.9]} 6. Be3 {[%clk 0:03:01.4]} 6... g6 {[%clk 0:03:00.3]}
7. Be2 {[%clk 0:02:41.9]} 7... Bg7 {[%clk 0:02:57.6]} 8. Qd2 {[%clk 0:02:38.8]}
8... b5 {[%clk 0:02:56.5]} 9. a3 {[%clk 0:02:38.1]} 9... Bb7 {[%clk 0:02:54.1]}
10. f3 {[%clk 0:02:36.5]} 10... Nbd7 {[%clk 0:02:51.8]} 11. Bh6 {[%clk 0:02:27]}
11... Bxh6 {[%clk 0:02:42]} 12. Qxh6 {[%clk 0:02:27.9]} 12... Qb6 {[%clk
0:02:42]} 13. Nb3 {[%clk 0:02:16.5]} 13... Rc8 {[%clk 0:02:37.2]} 14. h4 {[%clk
0:02:09.6]} 14... d5 {[%clk 0:02:20.4]} 15. h5 {[%clk 0:01:12.9]} 15... Rg8
{[%clk 0:01:32.2]} 16. exd5 {[%clk 0:01:00.8]} 16... Nxd5 {[%clk 0:01:29.8]} 17.
Nxd5 {[%clk 0:00:58.5]} 17... Bxd5 {[%clk 0:01:30.7]} 18. Qxh7 {[%clk
0:00:58.1]} 18... Nf6 {[%clk 0:01:30.7]} 19. Qh6 {[%clk 0:00:55.7]} 19... Rxc2
{[%clk 0:01:30.6]} 20. Nd2 {[%clk 0:00:43.8]} 20... gxh5 {[%clk 0:01:23.5]} 21.
Rxh5 {[%clk 0:00:19.5]} 21... Qg1+ {[%clk 0:01:13.8]} 22. Bf1 {[%clk 0:00:18.9]}
22... Nxh5 {[%clk 0:01:07]} 23. Qh7 {[%clk 0:00:18.3]} 23... Qe3+ {[%clk
0:01:06]} 0-1

[Event "Early-Titled-Tuesday-Blitz-April-23-2024"]
[Site "Chess.com"]
[Date "2024.04.23"]
[Round "7"]
[White "SmirnovTimofey2000"]
[Black "PawnEatingZombie"]
[Result "0-1"]
[WhiteElo "1986"]
[BlackElo "2227"]
[TimeControl "180+1"]
[EndTime "9:18:33 PDT"]
[Termination "PawnEatingZombie won by resignation"]

1. d4 {[%clk 0:02:59.3]} 1... Nf6 {[%clk 0:02:58.9]} 2. Bf4 {[%clk 0:02:59.4]}
2... g6 {[%clk 0:02:58.6]} 3. Nc3 {[%clk 0:02:59.6]} 3... Bg7 {[%clk 0:02:59.2]}
4. e4 {[%clk 0:02:59.4]} 4... d6 {[%clk 0:02:59.6]} 5. e5 {[%clk 0:02:59.7]}
5... Nfd7 {[%clk 0:02:58.2]} 6. Nf3 {[%clk 0:02:57.8]} 6... O-O {[%clk
0:02:57.6]} 7. Bc4 {[%clk 0:02:55]} 7... Nb6 {[%clk 0:02:55.8]} 8. Bb3 {[%clk
0:02:54.6]} 8... Nc6 {[%clk 0:02:55.7]} 9. h4 {[%clk 0:02:30.8]} 9... Bg4 {[%clk
0:02:54.7]} 10. h5 {[%clk 0:02:23.6]} 10... dxe5 {[%clk 0:02:46.3]} 11. dxe5
{[%clk 0:01:56.4]} 11... Qxd1+ {[%clk 0:02:42.3]} 12. Rxd1 {[%clk 0:01:55.3]}
12... Bxh5 {[%clk 0:02:32.1]} 13. Rxh5 {[%clk 0:01:43]} 13... gxh5 {[%clk
0:02:31.4]} 14. e6 {[%clk 0:01:36.5]} 14... fxe6 {[%clk 0:02:21]} 15. Bxc7
{[%clk 0:01:33.4]} 15... Bxc3+ {[%clk 0:01:59.8]} 16. bxc3 {[%clk 0:01:34.3]}
16... Nd5 {[%clk 0:02:00.3]} 17. Bxd5 {[%clk 0:01:27.4]} 17... exd5 {[%clk
0:01:59.9]} 18. Rxd5 {[%clk 0:01:28.3]} 18... e5 {[%clk 0:01:49.6]} 19. Nxe5
{[%clk 0:01:22.6]} 19... Rae8 {[%clk 0:01:50]} 20. f4 {[%clk 0:01:05]} 20...
Rxf4 {[%clk 0:01:47]} 21. Ke2 {[%clk 0:00:45.6]} 21... Re4+ {[%clk 0:01:37.2]}
22. Kd3 {[%clk 0:00:40.8]} 22... R4xe5 {[%clk 0:01:37.4]} 23. Bxe5 {[%clk
0:00:39]} 23... Rxe5 {[%clk 0:01:34.9]} 24. Rd7 {[%clk 0:00:37.4]} 24... Re7
{[%clk 0:01:33.1]} 25. Rd5 {[%clk 0:00:35.7]} 25... Rd7 {[%clk 0:01:24.8]} 26.
c4 {[%clk 0:00:32]} 26... Kf8 {[%clk 0:01:13.7]} 27. Ke4 {[%clk 0:00:29.3]}
27... Rxd5 {[%clk 0:01:02.5]} 28. cxd5 {[%clk 0:00:28.5]} 28... Nb4 {[%clk
0:01:01.8]} 0-1

[Event "Early-Titled-Tuesday-Blitz-April-23-2024"]
[Site "Chess.com"]
[Date "2024.04.23"]
[Round "7"]
[White "Kazmin_Semyon"]
[Black "AsaHoffmann"]
[Result "1-0"]
[WhiteElo "2566"]
[BlackElo "2395"]
[TimeControl "180+1"]
[EndTime "9:18:37 PDT"]
[Termination "Kazmin_Semyon won by checkmate"]

1. e4 {[%clk 0:02:59.6]} 1... d6 {[%clk 0:02:55.3]} 2. d4 {[%clk 0:02:58.2]}
2... Nf6 {[%clk 0:02:54.9]} 3. Nc3 {[%clk 0:02:57.7]} 3... c6 {[%clk 0:02:54.9]}
4. Nf3 {[%clk 0:02:49.1]} 4... Bg4 {[%clk 0:02:54.2]} 5. h3 {[%clk 0:02:49.1]}
5... Bh5 {[%clk 0:02:53]} 6. g4 {[%clk 0:02:48.8]} 6... Bg6 {[%clk 0:02:52.8]}
7. Bd3 {[%clk 0:02:49.4]} 7... e6 {[%clk 0:02:52.7]} 8. Be3 {[%clk 0:02:47.9]}
8... d5 {[%clk 0:02:52.8]} 9. e5 {[%clk 0:02:48]} 9... Nfd7 {[%clk 0:02:52.6]}
10. Bxg6 {[%clk 0:02:46.5]} 10... hxg6 {[%clk 0:02:52.3]} 11. Ne2 {[%clk
0:02:47.2]} 11... c5 {[%clk 0:02:52]} 12. c3 {[%clk 0:02:47.3]} 12... Nc6 {[%clk
0:02:52]} 13. h4 {[%clk 0:02:39.8]} 13... Be7 {[%clk 0:02:51.3]} 14. h5 {[%clk
0:02:38]} 14... gxh5 {[%clk 0:02:50.5]} 15. gxh5 {[%clk 0:02:38.9]} 15... Qb6
{[%clk 0:02:49.2]} 16. Rb1 {[%clk 0:02:29.5]} 16... O-O-O {[%clk 0:02:47.3]} 17.
a3 {[%clk 0:02:27.4]} 17... c4 {[%clk 0:02:46.3]} 18. b4 {[%clk 0:02:27]} 18...
cxb3 {[%clk 0:02:44.9]} 19. Rxb3 {[%clk 0:02:27]} 19... Qa6 {[%clk 0:02:42.9]}
20. Qb1 {[%clk 0:02:17]} 20... Na5 {[%clk 0:02:35.1]} 21. Rb2 {[%clk 0:02:05.5]}
21... Nb6 {[%clk 0:02:33.2]} 22. Nd2 {[%clk 0:02:01.8]} 22... Nbc4 {[%clk
0:02:30.8]} 23. Nxc4 {[%clk 0:02:00.3]} 23... Nxc4 {[%clk 0:02:30.7]} 24. Ra2
{[%clk 0:02:00.1]} 24... Kb8 {[%clk 0:02:23.3]} 25. a4 {[%clk 0:01:54.6]} 25...
Rc8 {[%clk 0:02:22.8]} 26. Qb5 {[%clk 0:01:53.3]} 26... Rc6 {[%clk 0:02:13.6]}
27. Qxa6 {[%clk 0:01:42.9]} 27... Rxa6 {[%clk 0:02:13]} 28. Nf4 {[%clk 0:01:43]}
28... b5 {[%clk 0:02:08.7]} 29. Rg1 {[%clk 0:01:41.7]} 29... Bf8 {[%clk
0:02:06]} 30. a5 {[%clk 0:01:26.3]} 30... Rxa5 {[%clk 0:02:02.7]} 31. Rxa5
{[%clk 0:01:26]} 31... Nxa5 {[%clk 0:02:02.6]} 32. Ke2 {[%clk 0:01:26.3]} 32...
Nc4 {[%clk 0:02:01.8]} 33. Bc1 {[%clk 0:01:23.4]} 33... a5 {[%clk 0:01:58.7]}
34. Kd3 {[%clk 0:01:17.3]} 34... Kb7 {[%clk 0:01:58.5]} 35. Kc2 {[%clk
0:01:17.6]} 35... a4 {[%clk 0:01:49]} 36. Rg3 {[%clk 0:01:17]} 36... Kc6 {[%clk
0:01:42.3]} 37. Rf3 {[%clk 0:01:14.6]} 37... Be7 {[%clk 0:01:39.1]} 38. Nd3
{[%clk 0:01:11.9]} 38... f6 {[%clk 0:01:32.1]} 39. exf6 {[%clk 0:01:11.2]} 39...
gxf6 {[%clk 0:01:25.5]} 40. Nf4 {[%clk 0:01:10]} 40... Kd6 {[%clk 0:01:19.4]}
41. Rg3 {[%clk 0:01:06]} 41... e5 {[%clk 0:01:17.9]} 42. dxe5+ {[%clk
0:01:04.7]} 42... fxe5 {[%clk 0:01:17.7]} 43. Rg6+ {[%clk 0:01:01.3]} 43... Kc5
{[%clk 0:00:47.2]} 44. Nd3# {[%clk 0:01:00.2]} 1-0

[Event "Early-Titled-Tuesday-Blitz-April-23-2024"]
[Site "Chess.com"]
[Date "2024.04.23"]
[Round "7"]
[White "lucasmito"]
[Black "ninguno46"]
[Result "0-1"]
[WhiteElo "2771"]
[BlackElo "2542"]
[TimeControl "180+1"]
[EndTime "9:18:38 PDT"]
[Termination "ninguno46 won by resignation"]

1. e4 {[%clk 0:03:00.9]} 1... c5 {[%clk 0:02:59.1]} 2. Nf3 {[%clk 0:03:01.3]}
2... Nc6 {[%clk 0:02:59.3]} 3. Nc3 {[%clk 0:03:01.7]} 3... g6 {[%clk 0:02:58.7]}
4. d4 {[%clk 0:03:02.2]} 4... cxd4 {[%clk 0:02:58.8]} 5. Nxd4 {[%clk 0:03:03.1]}
5... Bg7 {[%clk 0:02:58.5]} 6. Be3 {[%clk 0:03:03.6]} 6... Nf6 {[%clk
0:02:58.5]} 7. Nxc6 {[%clk 0:03:03.4]} 7... bxc6 {[%clk 0:02:57.9]} 8. e5 {[%clk
0:03:03.7]} 8... Ng8 {[%clk 0:02:58]} 9. Bd4 {[%clk 0:03:03.6]} 9... Qa5 {[%clk
0:02:54.6]} 10. f4 {[%clk 0:03:01.4]} 10... Nh6 {[%clk 0:02:52.9]} 11. Qe2
{[%clk 0:02:57]} 11... O-O {[%clk 0:02:44]} 12. O-O-O {[%clk 0:02:56.1]} 12...
Rb8 {[%clk 0:02:39.2]} 13. a3 {[%clk 0:02:19]} 13... Nf5 {[%clk 0:02:32.3]} 14.
Bf2 {[%clk 0:02:19]} 14... d6 {[%clk 0:02:10.1]} 15. g4 {[%clk 0:02:18.8]} 15...
Nh6 {[%clk 0:02:09.6]} 16. h3 {[%clk 0:02:14.8]} 16... Be6 {[%clk 0:01:57.7]}
17. Qa6 {[%clk 0:02:05.7]} 17... Qc7 {[%clk 0:01:56.5]} 18. exd6 {[%clk
0:01:58.1]} 18... exd6 {[%clk 0:01:55.1]} 19. Bd4 {[%clk 0:01:56.6]} 19... d5
{[%clk 0:01:44.1]} 20. Ne2 {[%clk 0:01:37.1]} 20... c5 {[%clk 0:01:16.4]} 21.
Bxg7 {[%clk 0:01:30.6]} 21... Kxg7 {[%clk 0:01:16.3]} 22. Bg2 {[%clk 0:01:17.6]}
22... d4 {[%clk 0:01:07.6]} 23. Rhf1 {[%clk 0:01:01.5]} 23... Rb6 {[%clk
0:01:05.2]} 24. Qa5 {[%clk 0:00:58.4]} 24... Rfb8 {[%clk 0:00:49.6]} 25. f5
{[%clk 0:00:52.9]} 25... Bc4 {[%clk 0:00:39.8]} 26. Rd2 {[%clk 0:00:48.1]} 26...
Rxb2 {[%clk 0:00:25.1]} 0-1

[Event "Early-Titled-Tuesday-Blitz-April-23-2024"]
[Site "Chess.com"]
[Date "2024.04.23"]
[Round "7"]
[White "Flaccidmoves"]
[Black "Smoking_Crow"]
[Result "1-0"]
[WhiteElo "2456"]
[BlackElo "2624"]
[TimeControl "180+1"]
[EndTime "9:18:40 PDT"]
[Termination "Flaccidmoves won by resignation"]

1. Nf3 {[%clk 0:02:58.7]} 1... d5 {[%clk 0:02:59.7]} 2. e3 {[%clk 0:02:58.1]}
2... Nf6 {[%clk 0:02:57.5]} 3. c4 {[%clk 0:02:58]} 3... e6 {[%clk 0:02:55.7]} 4.
b3 {[%clk 0:02:56.6]} 4... c6 {[%clk 0:02:55.5]} 5. Bb2 {[%clk 0:02:56.7]} 5...
Bd6 {[%clk 0:02:55.1]} 6. Nc3 {[%clk 0:02:49.8]} 6... O-O {[%clk 0:02:55]} 7. d4
{[%clk 0:02:38.2]} 7... Nbd7 {[%clk 0:02:54.2]} 8. Bd3 {[%clk 0:02:38]} 8... Qe7
{[%clk 0:02:53]} 9. O-O {[%clk 0:02:37.8]} 9... Ne4 {[%clk 0:02:53.9]} 10. Nxe4
{[%clk 0:02:36.6]} 10... dxe4 {[%clk 0:02:54.8]} 11. Bxe4 {[%clk 0:02:36.9]}
11... h6 {[%clk 0:02:53.7]} 12. Bc2 {[%clk 0:02:26.3]} 12... Bc7 {[%clk
0:02:53.2]} 13. e4 {[%clk 0:02:24.4]} 13... e5 {[%clk 0:02:46]} 14. d5 {[%clk
0:02:21.1]} 14... c5 {[%clk 0:02:44.6]} 15. Ne1 {[%clk 0:02:19.6]} 15... Bd6
{[%clk 0:02:42.7]} 16. Nd3 {[%clk 0:02:17.9]} 16... Re8 {[%clk 0:02:35.6]} 17.
Qd2 {[%clk 0:02:13.3]} 17... Nf8 {[%clk 0:02:34.4]} 18. f4 {[%clk 0:02:08.7]}
18... f6 {[%clk 0:02:32.3]} 19. fxe5 {[%clk 0:02:06.7]} 19... fxe5 {[%clk
0:02:33.2]} 20. Rf2 {[%clk 0:01:57.1]} 20... Ng6 {[%clk 0:02:31.9]} 21. Raf1
{[%clk 0:01:57.4]} 21... Bd7 {[%clk 0:02:31.5]} 22. Qc3 {[%clk 0:01:39.1]} 22...
a6 {[%clk 0:02:21.3]} 23. Bd1 {[%clk 0:01:19.4]} 23... Qg5 {[%clk 0:02:14.7]}
24. Bc1 {[%clk 0:01:15.8]} 24... Qh4 {[%clk 0:02:13]} 25. g3 {[%clk 0:00:53.5]}
25... Qh3 {[%clk 0:02:12.6]} 26. Bf3 {[%clk 0:00:52.9]} 26... Rf8 {[%clk
0:02:08.8]} 27. Bg2 {[%clk 0:00:52.4]} 27... Qg4 {[%clk 0:02:05.3]} 28. Rxf8+
{[%clk 0:00:52.3]} 28... Rxf8 {[%clk 0:02:02.2]} 29. Rxf8+ {[%clk 0:00:51.9]}
29... Kxf8 {[%clk 0:02:03.1]} 30. Qe1 {[%clk 0:00:48.9]} 30... Kg8 {[%clk
0:02:00.2]} 31. Be3 {[%clk 0:00:36.8]} 31... b6 {[%clk 0:01:57.7]} 32. b4 {[%clk
0:00:36.5]} 32... h5 {[%clk 0:01:48.8]} 33. Nf2 {[%clk 0:00:27]} 33... h4 {[%clk
0:01:46.1]} 34. Nxg4 {[%clk 0:00:26.9]} 34... Bxg4 {[%clk 0:01:47]} 35. gxh4
{[%clk 0:00:26.4]} 35... Be7 {[%clk 0:01:46.7]} 36. Bf2 {[%clk 0:00:25.5]} 36...
Nf4 {[%clk 0:01:46.2]} 37. Bf1 {[%clk 0:00:23.7]} 37... Bh5 {[%clk 0:01:41]} 38.
bxc5 {[%clk 0:00:23.3]} 38... bxc5 {[%clk 0:01:40.5]} 39. Qa5 {[%clk 0:00:22.5]}
39... Ng6 {[%clk 0:01:35.2]} 40. Bxc5 {[%clk 0:00:21.2]} 40... Bxh4 {[%clk
0:01:34.5]} 41. Bf2 {[%clk 0:00:21.7]} 41... Bg5 {[%clk 0:01:34.7]} 42. d6
{[%clk 0:00:20.3]} 42... Nf4 {[%clk 0:01:34.7]} 43. d7 {[%clk 0:00:19.9]} 43...
Bg4 {[%clk 0:01:34.6]} 44. d8=Q+ {[%clk 0:00:19.7]} 1-0